[Event "15th Paderborner Schachtuerken-Cup 2018"]
[Site "Paderborn"]
[Date "2018.12.28"]
[Round "3"]
[White "Gutman, Lev"]
[Black "Kruse, Janik"]
[Result "0-1"]
[ECO "A11"]
[WhiteElo "2422"]
[BlackElo "2127"]
[Annotator "ChessBase"]
[PlyCount "108"]
[EventDate "2018.12.27"]
[EventType "swiss"]
[EventCountry "GER"]
[SourceTitle "playchess.com"]
[Source "ChessBase"]
[SourceQuality "1"]
[TimeControl "40/5400+30:900+30"]

1. Nf3 {[%emt 0:00:00]} d5 {[%emt 0:00:00]} 2. g3 {[%emt 0:00:00]} c6 {[%emt 0:00:19]} 3. Bg2 {[%emt 0:00:00]} Bg4 {[%emt 0:00:45]} 4. O-O {[%emt 0:00:00]} Nd7 {[%emt 0:00:57]} 5. d3 {[%emt 0:04:39]} Ngf6 {[%emt 0:03:44]} 6. c4 {[%emt 0:00:24]} e6 {[%emt 0:04:22]} 7. Be3 {[%emt 0:00:28]} Bd6 {[%emt 0:10:24]} 8. Qb3 {[%emt 0:01:15]} Qb8 {[%emt 0:01:09]} 9. cxd5 {[%emt 0:12:02]} exd5 {[%emt 0:05:50]} 10. Bd4 {[%emt 0:01:01]} O-O {[%emt 0:01:47]} 11. Nc3 {[%emt 0:00:12]} Re8 {[%emt 0:05:36]} 12. Rac1 {[%emt 0:03:19]} h6 {[%emt 0:05:32]} 13. Rfe1 {[%emt 0:02:47]} Nh7 {[%emt 0:09:18]} 14. Na4 {[%emt 0:15:54]} Nhf8 {[%emt 0:06:46]} 15. Be3 {[%emt 0:08:47]} Ne6 {[%emt 0:05:08]} 16. d4 {[%emt 0:01:29]} Bf8 {[%emt 0:11:21]} 17. Qd3 {[%emt 0:07:34]} Bxf3 {[%emt 0:05:09]} 18. exf3 {[%emt 0:03:06]} Qd8 {[%emt 0:01:04]} 19. a3 {[%emt 0:03:18]} Qa5 {[%emt 0:06:19]} 20. Qd1 {[%emt 0:04:11]} Nb6 {[%emt 0:01:07]} 21. Nxb6 {[%emt 0:00:12]} axb6 {[%emt 0:01:15]} 22. f4 {[%emt 0:01:05]} Qa4 {[%emt 0:02:57]} 23. Qd3 {[%emt 0:04:17]} Qa6 {[%emt 0:00:46]} 24. Qb3 {[%emt 0:01:02]} b5 {[%emt 0:02:16]} 25. h4 {[%emt 0:00:36]} Qa4 {[%emt 0:01:07]} 26. Qd3 {[%emt 0:03:44]} b4 {[%emt 0:00:05]} 27. axb4 {[%emt 0:10:19]} Qxb4 {[%emt 0:02:30]} 28. f5 {[%emt 0:00:08]} Nc7 {[%emt 0:00:12]} 29. f6 {[%emt 0:02:27]} Ra2 {[%emt 0:01:19]} 30. b3 {[%emt 0:06:39]} Nb5 {[%emt 0:01:37]} 31. Red1 {[%emt 0:03:08]} Nd6 {[%emt 0:02:57]} 32. fxg7 {[%emt 0:00:07]} Bxg7 {[%emt 0:00:02]} 33. Bf4 {[%emt 0:00:17]} Ne4 {[%emt 0:00:38]} 34. Bxe4 {[%emt 0:00:14]} Rxe4 {[%emt 0:00:23]} 35. Be3 {[%emt 0:00:07]} Rb2 {[%emt 0:00:50]} 36. Rc3 {[%emt 0:00:00]} Qe7 {[%emt 0:01:41]} 37. Rc2 {[%emt 0:00:08]} Rxc2 {[%emt 0:00:10]} 38. Qxc2 {[%emt 0:00:01]} Qb4 {[%emt 0:00:16]} 39. Qd3 {[%emt 0:00:08]} Qe7 {[%emt 0:00:16]} 40. Kg2 {[%emt 0:00:04]} f5 {[%emt 0:01:22]} 41. Ra1 {[%emt 0:15:45]} Kh7 {[%emt 0:05:32]} 42. Ra8 {[%emt 0:00:00]} Bf6 {[%emt 0:02:03]} 43. Qd1 {[%emt 0:00:00]} Qg7 {[%emt 0:05:31]} 44. Qf3 {[%emt 0:00:00]} Qg4 {[%emt 0:01:27]} 45. Rb8 {[%emt 0:00:00]} Re7 {[%emt 0:00:05]} 46. Ra8 {[%emt 0:01:04]} Re4 {[%emt 0:00:35]} 47. Ra7 {[%emt 0:01:54]} Re7 {[%emt 0:00:30]} 48. Qxg4 {[%emt 0:01:54]} fxg4 {[%emt 0:00:02]} 49. Kf1 {[%emt 0:00:36]} Kg6 {[%emt 0:00:23]} 50. Ra4 {[%emt 0:00:33]} Re6 {[%emt 0:03:24]} 51. b4 {[%emt 0:00:52]} h5 {[%emt 0:00:54]} 52. Ra8 {[%emt 0:01:08]} Kf5 {[%emt 0:00:29]} 53. Rf8 {[%emt 0:00:39]} Kg6 {[%emt 0:00:29]} 54. Rb8 {[%emt 0:00:44]} Re7 {[%emt 0:00:02]} 0-1

[Event "15th Paderborner Schachtuerken-Cup 2018"]
[Site "Paderborn"]
[Date "2018.12.28"]
[Round "3"]
[White "Zimmermann, Klemens"]
[Black "Heinemann, Ernst"]
[Result "1/2-1/2"]
[ECO "A58"]
[WhiteElo "2282"]
[BlackElo "2072"]
[Annotator "NA"]
[PlyCount "49"]
[EventDate "2018.12.27"]
[EventType "swiss"]
[EventCountry "GER"]
[SourceTitle "playchess.com"]
[Source "ChessBase"]
[SourceQuality "1"]
[TimeControl "40/5400+30:900+30"]

1. d4 {[%emt 0:00:00]} Nf6 {[%emt 0:00:13]} 2. c4 {[%emt 0:00:00]} c5 {[%emt 0:00:07]} 3. d5 {[%emt 0:00:00]} b5 {[%emt 0:00:06]} 4. cxb5 {[%emt 0:00:00]} a6 {[%emt 0:00:08]} 5. bxa6 {[%emt 0:00:00]} e6 {[%emt 0:00:09]} 6. Nc3 {[%emt 0:01:37]} exd5 {[%emt 0:01:21]} 7. Nxd5 {[%emt 0:00:39]} Nxd5 {[%emt 0:00:08]} 8. Qxd5 {[%emt 0:00:05]} Nc6 {[%emt 0:00:08]} 9. Bd2 {[%emt 0:05:05]} Be7 {[%emt 0:03:34]} 10. Bc3 {[%emt 0:00:25]} O-O {[%emt 0:01:37]} 11. e3 {[%emt 0:00:49]} Qb6 {[%emt 0:03:58]} 12. a3 {[%emt 0:11:36]} d6 {[%emt 0:18:34]} 13. Bd3 {[%emt 0:00:36]} Bxa6 {[%emt 0:00:41]} 14. Rd1 {[%emt 0:01:44]} Bxd3 {[%emt 0:12:52]} 15. Rxd3 {[%emt 0:01:51]} Ne5 {[%emt 0:00:52]} 16. Rd2 {[%emt 0:04:38]} c4 {[%emt 0:04:16]} 17. Nf3 {[%emt 0:00:57]} Nd3+ {[%emt 0:02:24]} 18. Ke2 {[%emt 0:00:02]} Nc5 {[%emt 0:04:51]} 19. Qxc4 {[%emt 0:04:38]} Rac8 {[%emt 0:06:30]} 20. Rhd1 {[%emt 0:14:12]} Nb3 {[%emt 0:03:51]} 21. Qg4 {[%emt 0:04:10]} Rxc3 {[%emt 0:02:02]} 22. bxc3 {[%emt 0:03:44]} Nxd2 23. Nxd2 Qa6+ {[%emt 0:00:08]} 24. Qc4 {[%emt 0:00:02]} Qxa3 {[%emt 0:00:01]} 25. Qg4 {[%emt 0:01:32]} 1/2-1/2

[Event "15th Paderborner Schachtuerken-Cup 2018"]
[Site "Paderborn"]
[Date "2018.12.28"]
[Round "3"]
[White "Boehm, Juergen"]
[Black "Levin, Felix"]
[Result "0-1"]
[ECO "A45"]
[WhiteElo "2170"]
[BlackElo "2482"]
[Annotator "ChessBase"]
[PlyCount "106"]
[EventDate "2018.12.27"]
[EventType "swiss"]
[EventCountry "GER"]
[SourceTitle "playchess.com"]
[Source "ChessBase"]
[SourceQuality "1"]
[TimeControl "40/5400+30:900+30"]

1. d4 {[%emt 0:03:33]} Nf6 {[%emt 0:00:01]} 2. Bg5 {[%emt 0:00:19]} c5 {[%emt 0:00:19]} 3. Nc3 {[%emt 0:01:19]} cxd4 {[%emt 0:00:11]} 4. Qxd4 {[%emt 0:00:07]} Nc6 {[%emt 0:00:27]} 5. Qh4 {[%emt 0:00:05]} d6 {[%emt 0:00:58]} 6. e4 {[%emt 0:01:02]} Bd7 {[%emt 0:00:44]} 7. Bd3 {[%emt 0:28:50]} h6 {[%emt 0:07:24]} 8. Nge2 {[%emt 0:08:18]} Rg8 {[%emt 0:01:17]} 9. Bd2 {[%emt 0:01:51]} g5 {[%emt 0:02:47]} 10. Qg3 {[%emt 0:00:10]} Ne5 {[%emt 0:01:08]} 11. f3 {[%emt 0:03:48]} a6 {[%emt 0:14:54]} 12. Qf2 {[%emt 0:01:35]} b5 {[%emt 0:10:44]} 13. a3 {[%emt 0:01:32]} Qc7 {[%emt 0:01:39]} 14. g4 {[%emt 0:09:05]} e6 {[%emt 0:01:03]} 15. h3 {[%emt 0:08:12]} Bc6 {[%emt 0:12:40]} 16. Rf1 {[%emt 0:01:26]} Nfd7 {[%emt 0:03:56]} 17. Rd1 {[%emt 0:08:40]} Be7 {[%emt 0:04:06]} 18. Nd4 {[%emt 0:03:47]} Ng6 {[%emt 0:09:07]} 19. Nxc6 {[%emt 0:02:10]} Qxc6 {[%emt 0:00:07]} 20. Ne2 {[%emt 0:00:31]} Nde5 {[%emt 0:03:34]} 21. Bc3 {[%emt 0:02:18]} Bd8 {[%emt 0:01:44]} 22. Bd4 {[%emt 0:08:41]} Rb8 {[%emt 0:01:33]} 23. Be3 {[%emt 0:00:53]} Bb6 {[%emt 0:05:18]} 24. Bxb6 {[%emt 0:00:26]} Qxb6 {[%emt 0:00:23]} 25. Qxb6 {[%emt 0:00:20]} Rxb6 {[%emt 0:00:08]} 26. f4 {[%emt 0:01:24]} Nxf4 {[%emt 0:00:19]} 27. Nxf4 {[%emt 0:00:06]} gxf4 {[%emt 0:00:05]} 28. Rxf4 {[%emt 0:00:10]} Ke7 {[%emt 0:01:11]} 29. Be2 {[%emt 0:01:46]} Rg5 {[%emt 0:03:05]} 30. Kd2 {[%emt 0:00:51]} Ng6 {[%emt 0:06:01]} 31. Rf2 {[%emt 0:00:05]} e5 {[%emt 0:00:33]} 32. h4 {[%emt 0:01:57]} Nxh4 {[%emt 0:00:09]} 33. Rh2 {[%emt 0:00:04]} Ng6 {[%emt 0:00:10]} 34. Rxh6 {[%emt 0:00:11]} Nf4 {[%emt 0:00:45]} 35. Bf3 {[%emt 0:00:08]} Ne6 {[%emt 0:01:26]} 36. c3 {[%emt 0:00:26]} Rb8 {[%emt 0:03:52]} 37. Kc2 {[%emt 0:00:41]} Rg6 {[%emt 0:01:14]} 38. Rh5 {[%emt 0:00:31]} Ng5 {[%emt 0:02:04]} 39. Bg2 {[%emt 0:00:09]} Ne6 {[%emt 0:00:39]} 40. Bf3 {[%emt 0:00:04]} Rbg8 {[%emt 0:00:50]} 41. Rh4 {[%emt 0:03:53]} Rf6 {[%emt 0:00:32]} 42. Rd3 {[%emt 0:08:51]} Rf4 {[%emt 0:06:21]} 43. Re3 {[%emt 0:01:39]} Ng5 {[%emt 0:00:28]} 44. Bh1 {[%emt 0:00:23]} Rf2+ {[%emt 0:01:36]} 45. Kb3 {[%emt 0:03:14]} a5 {[%emt 0:02:56]} 46. Re1 {[%emt 0:01:43]} Ne6 {[%emt 0:00:39]} 47. Ka2 {[%emt 0:00:43]} Nc5 {[%emt 0:00:12]} 48. Rb1 {[%emt 0:00:32]} Na4 {[%emt 0:01:46]} 49. Kb3 {[%emt 0:00:07]} Nc5+ {[%emt 0:01:16]} 50. Ka2 {[%emt 0:00:04]} b4 {[%emt 0:00:14]} 51. Rh3 {[%emt 0:00:59]} b3+ {[%emt 0:00:37]} 52. Ka1 {[%emt 0:00:04]} Rxg4 {[%emt 0:00:05]} 53. Re3 {[%emt 0:01:11]} Rgf4 {[%emt 0:01:11]} 0-1

[Event "15th Paderborner Schachtuerken-Cup 2018"]
[Site "Paderborn"]
[Date "2018.12.28"]
[Round "3"]
[White "Steinle, Carsten"]
[Black "Skembris, Spyridon"]
[Result "0-1"]
[ECO "A01"]
[WhiteElo "2154"]
[BlackElo "2384"]
[Annotator "NA"]
[PlyCount "81"]
[EventDate "2018.12.27"]
[EventType "swiss"]
[EventCountry "GER"]
[SourceTitle "playchess.com"]
[Source "ChessBase"]
[SourceQuality "1"]
[TimeControl "40/5400+30:900+30"]

1. b3 {[%emt 0:00:00]} e5 {[%emt 0:02:20]} 2. Bb2 {[%emt 0:00:15]} Nc6 {[%emt 0:01:08]} 3. e3 {[%emt 0:03:57]} d6 {[%emt 0:02:32]} 4. Nf3 {[%emt 0:02:57]} Nf6 {[%emt 0:00:59]} 5. c4 {[%emt 0:01:01]} g6 {[%emt 0:00:29]} 6. d4 {[%emt 0:00:23]} Bg7 {[%emt 0:01:58]} 7. Nc3 {[%emt 0:02:27]} exd4 {[%emt 0:14:04]} 8. Nxd4 {[%emt 0:01:05]} O-O {[%emt 0:03:06]} 9. Be2 {[%emt 0:14:25]} Re8 {[%emt 0:08:29]} 10. Nxc6 {[%emt 0:07:21]} bxc6 {[%emt 0:00:04]} 11. Bf3 {[%emt 0:00:57]} Bd7 {[%emt 0:00:27]} 12. O-O {[%emt 0:02:31]} h5 {[%emt 0:00:34]} 13. Ne2 {[%emt 0:03:02]} a5 {[%emt 0:00:45]} 14. Qd4 {[%emt 0:02:52]} Bg4 {[%emt 0:12:23]} 15. Qf4 {[%emt 0:08:38]} Bxf3 {[%emt 0:03:57]} 16. Qxf3 {[%emt 0:00:30]} Ne4 {[%emt 0:00:59]} 17. Bxg7 {[%emt 0:00:54]} Kxg7 {[%emt 0:00:07]} 18. Rfd1 {[%emt 0:03:43]} c5 {[%emt 0:03:47]} 19. Rac1 {[%emt 0:05:32]} a4 {[%emt 0:02:14]} 20. Nc3 {[%emt 0:00:59]} Nxc3 {[%emt 0:00:19]} 21. Rxc3 {[%emt 0:00:10]} axb3 {[%emt 0:00:02]} 22. axb3 {[%emt 0:00:08]} Ra2 {[%emt 0:00:07]} 23. Rcd3 {[%emt 0:03:08]} Qa8 {[%emt 0:02:33]} 24. Qg3 {[%emt 0:06:46]} Qe4 {[%emt 0:06:00]} 25. f3 {[%emt 0:01:30]} Qf5 {[%emt 0:01:20]} 26. e4 {[%emt 0:08:06]} Qf6 {[%emt 0:00:12]} 27. Qe1 {[%emt 0:06:15]} Rea8 {[%emt 0:00:34]} 28. R3d2 {[%emt 0:05:28]} R8a3 {[%emt 0:01:31]} 29. Rb1 {[%emt 0:06:11]} Ra1 {[%emt 0:01:50]} 30. Rdd1 {[%emt 0:01:00]} Rxb1 {[%emt 0:00:26]} 31. Rxb1 {[%emt 0:00:01]} Ra2 {[%emt 0:00:11]} 32. h4 {[%emt 0:00:58]} Qd4+ {[%emt 0:01:00]} 33. Kh2 {[%emt 0:00:37]} Qd3 {[%emt 0:00:20]} 34. Qd1 {[%emt 0:00:43]} Rd2 {[%emt 0:01:35]} 35. Qe1 {[%emt 0:01:24]} Qc2 {[%emt 0:01:55]} 36. Qf1 {[%emt 0:01:08]} Rf2 {[%emt 0:01:43]} 37. Rc1 {[%emt 0:00:30]} Qd2 {[%emt 0:00:18]} 38. Qg1 {[%emt 0:00:48]} Rxf3 {[%emt 0:00:51]} 39. Qe1 {[%emt 0:00:34]} Qf4+ {[%emt 0:01:46]} 40. Kg1 {[%emt 0:00:34]} Rxb3 {[%emt 0:00:26]} 41. Ra1 {[%emt 0:00:45]} 0-1

[Event "15th Paderborner Schachtuerken-Cup 2018"]
[Site "Paderborn"]
[Date "2018.12.28"]
[Round "3"]
[White "Sanati, Charlotte"]
[Black "Ackermann, Hans Werner"]
[Result "1/2-1/2"]
[ECO "A41"]
[WhiteElo "2090"]
[BlackElo "2275"]
[Annotator "NA"]
[PlyCount "87"]
[EventDate "2018.12.27"]
[EventType "swiss"]
[EventCountry "GER"]
[SourceTitle "playchess.com"]
[Source "ChessBase"]
[SourceQuality "1"]
[TimeControl "40/5400+30:900+30"]

1. d4 {[%emt 0:00:00]} d6 {[%emt 0:03:02]} 2. c4 {[%emt 0:00:00]} e5 {[%emt 0:00:05]} 3. Nf3 {[%emt 0:00:58]} exd4 {[%emt 0:02:44]} 4. Nxd4 {[%emt 0:01:27]} g6 {[%emt 0:00:18] A41: 1 d4 d6: Tartakower System and Modern Defence} 5. Nc3 {[%emt 0:01:30]} Bg7 {[%emt 0:00:17]} 6. e3 {[%emt 0:04:09]} (6. g3 Nc6 7. Nxc6 bxc6 8. Bg2 Ne7 9. O-O O-O 10. Bg5 Rb8 11. Qd2 f6 12. Be3 c5 13. Rad1 Be6 14. b3 Nf5 15. Bd5 Qd7 16. Bf4 g5 17. Qd3 Rf7 18. Bc1 Re8 19. e3 Bxd5 20. Nxd5 {0-1 (42) Van Wely,L (2691)-Ernst,S (2552) Wolvega 2012}) 6... Nf6 {[%emt 0:04:22]} 7. Be2 {[%emt 0:00:58]} O-O {[%emt 0:03:58]} 8. O-O {[%emt 0:00:29] N} Nbd7 {[%emt 0:02:20]} 9. Qc2 {[%emt 0:03:04]} c6 {[%emt 0:13:38]} 10. b3 {[%emt 0:07:56]} Qe7 $146 {[%emt 0:00:56]} ({Predecessor:} 10... Nb6 11. Bb2 Qe7 12. Rad1 d5 13. cxd5 Nfxd5 14. Bf3 Rd8 15. Rfe1 Nb4 16. Qb1 c5 17. Ndb5 {½-½ (30) Nevanlinna,R (2258)-Tuominen,R (2283) Finland 2018}) 11. Bb2 {[%emt 0:03:24]} Re8 {[%emt 0:08:00]} 12. Rad1 {[%emt 0:06:03]} Nb6 {[%emt 0:05:10]} 13. h3 {[%emt 0:10:54]} d5 {[%emt 0:16:40]} 14. cxd5 {[%emt 0:08:53]} Nfxd5 {[%emt 0:01:04]} 15. Bf3 {[%emt 0:05:27]} Nf6 {[%emt 0:04:22]} 16. Rfe1 {[%emt 0:02:36]} Nfd7 {[%emt 0:02:17]} 17. Be2 {[%emt 0:16:49]} Nf8 {[%emt 0:02:27]} 18. a4 {[%emt 0:05:20]} a5 {[%emt 0:03:16]} 19. Rd2 {[%emt 0:02:05]} (19. Qc1 $14) 19... Ne6 {[%emt 0:03:25]} 20. Nf3 {[%emt 0:01:28]} Nc7 {[%emt 0:00:22]} 21. Red1 {[%emt 0:01:42]} Ncd5 {[%emt 0:05:03]} 22. Nxd5 {[%emt 0:01:49]} Nxd5 {[%emt 0:00:56]} 23. Bxg7 {[%emt 0:01:24]} Kxg7 {[%emt 0:00:07]} 24. Qb2+ {[%emt 0:00:19]} Qf6 {[%emt 0:00:11]} 25. Nd4 {[%emt 0:03:28]} Kg8 {[%emt 0:07:48]} 26. Bc4 {[%emt 0:01:47]} Nb6 {[%emt 0:00:25]} 27. Be2 {[%emt 0:00:41]} Be6 {[%emt 0:08:14]} 28. Nxe6 {[%emt 0:02:31] Qxb} Qxb2 $1 {[%emt 0:00:07]} 29. Rxb2 {[%emt 0:00:06] Rxe} Rxe6 {[%emt 0:00:09]} 30. Rbd2 {[%emt 0:00:36]} Kf8 {[%emt 0:00:09]} 31. Bf3 {[%emt 0:00:54]} Ree8 {[%emt 0:01:22]} 32. Rd4 {[%emt 0:00:56]} h5 {[%emt 0:00:53]} 33. Kf1 {[%emt 0:00:15]} Re5 {[%emt 0:00:26]} 34. Ke2 {[%emt 0:02:24]} Ke7 {[%emt 0:00:10]} 35. g3 $11 {[%emt 0:00:36]} Rc5 {[%emt 0:00:17]} 36. R1d3 {[%emt 0:00:56]} Rc2+ {[%emt 0:00:24]} 37. Rd2 {[%emt 0:01:43]} Rxd2+ {[%emt 0:00:22]} 38. Kxd2 {[%emt 0:00:09]} Rd8 {[%emt 0:01:50]} 39. Kc3 {[%emt 0:00:36]} Rxd4 {[%emt 0:00:12]} 40. Kxd4 {[%emt 0:00:12]} Kd6 {[%emt 0:00:05]} 41. Be2 {[%emt 0:17:10]} Nd7 {[%emt 0:08:35]} 42. f4 {[%emt 0:00:00]} b6 {[%emt 0:02:17]} 43. Bc4 {[%emt 0:00:00]} Ke7 {[%emt 0:00:18]} 44. e4 {[%emt 0:00:00]} 1/2-1/2

[Event "15th Paderborner Schachtuerken-Cup 2018"]
[Site "Paderborn"]
[Date "2018.12.28"]
[Round "4"]
[White "Levin, Felix"]
[Black "Meessen, Max"]
[Result "1-0"]
[ECO "E04"]
[WhiteElo "2482"]
[BlackElo "2208"]
[Annotator "ChessBase"]
[PlyCount "67"]
[EventDate "2018.12.27"]
[EventType "swiss"]
[EventCountry "GER"]
[SourceTitle "playchess.com"]
[Source "ChessBase"]
[SourceQuality "1"]
[TimeControl "40/5400+30:900+30"]

1. d4 {[%emt 0:02:00]} d5 {[%emt 0:00:00]} 2. c4 {[%emt 0:00:13]} e6 {[%emt 0:00:00]} 3. Nf3 {[%emt 0:00:07]} Nf6 {[%emt 0:00:00]} 4. g3 {[%emt 0:00:15]} dxc4 {[%emt 0:00:33]} 5. Bg2 {[%emt 0:00:24]} Bb4+ {[%emt 0:00:07]} 6. Bd2 {[%emt 0:00:15]} a5 {[%emt 0:00:09]} 7. a3 {[%emt 0:00:32]} Bxd2+ {[%emt 0:00:13]} 8. Nbxd2 {[%emt 0:00:12]} b5 {[%emt 0:00:42]} 9. b3 {[%emt 0:00:09]} cxb3 {[%emt 0:02:06]} 10. Qxb3 {[%emt 0:01:14]} c6 {[%emt 0:03:44]} 11. O-O {[%emt 0:01:02]} O-O {[%emt 0:00:28]} 12. Rfc1 {[%emt 0:00:35]} Bb7 {[%emt 0:15:03]} 13. Qb2 {[%emt 0:00:21]} Qe7 {[%emt 0:05:38]} 14. Ne5 {[%emt 0:01:14]} Rc8 {[%emt 0:03:55]} 15. Nb3 {[%emt 0:02:42]} Nfd7 {[%emt 0:06:39]} 16. Nd3 {[%emt 0:15:12]} Qd8 {[%emt 0:09:10]} 17. Rc2 {[%emt 0:14:46]} Na6 {[%emt 0:06:28]} 18. Rac1 {[%emt 0:01:54]} Qb6 {[%emt 0:05:25]} 19. h4 {[%emt 0:07:25]} Rab8 {[%emt 0:04:00]} 20. h5 {[%emt 0:06:16]} h6 {[%emt 0:00:13]} 21. Nbc5 {[%emt 0:02:38]} Naxc5 {[%emt 0:02:33]} 22. Nxc5 {[%emt 0:00:11]} Nxc5 {[%emt 0:00:43]} 23. Rxc5 {[%emt 0:00:05]} Qd8 {[%emt 0:04:57]} 24. e3 {[%emt 0:00:44]} Ba8 {[%emt 0:10:52]} 25. Qb3 {[%emt 0:01:11]} Bb7 {[%emt 0:05:26]} 26. Be4 {[%emt 0:00:41]} Ra8 {[%emt 0:06:18]} 27. f4 {[%emt 0:03:54]} Qe7 {[%emt 0:01:16]} 28. Bb1 {[%emt 0:00:21]} Rd8 {[%emt 0:01:01]} 29. Qc2 {[%emt 0:01:14]} Qf6 {[%emt 0:02:26]} 30. Rxb5 {[%emt 0:05:57]} cxb5 {[%emt 0:04:24]} 31. Qh7+ {[%emt 0:00:13]} Kf8 {[%emt 0:00:00]} 32. Rc7 {[%emt 0:00:08]} g6 {[%emt 0:00:27]} 33. hxg6 {[%emt 0:03:09]} fxg6 {[%emt 0:00:18]} 34. Bxg6 {[%emt 0:00:14]} 1-0

[Event "15th Paderborner Schachtuerken-Cup 2018"]
[Site "Paderborn"]
[Date "2018.12.28"]
[Round "4"]
[White "Skembris, Spyridon"]
[Black "Nagel, Bernhard"]
[Result "1-0"]
[ECO "A20"]
[WhiteElo "2384"]
[BlackElo "2205"]
[Annotator "NA"]
[PlyCount "107"]
[EventDate "2018.12.27"]
[EventType "swiss"]
[EventCountry "GER"]
[SourceTitle "playchess.com"]
[Source "ChessBase"]
[SourceQuality "1"]
[TimeControl "40/5400+30:900+30"]

1. c4 {[%emt 0:00:00]} e5 {[%emt 0:00:00]} 2. g3 {[%emt 0:00:05]} Nf6 {[%emt 0:00:00]} 3. Bg2 {[%emt 0:00:06]} c6 {[%emt 0:00:00]} 4. d4 {[%emt 0:01:06]} exd4 {[%emt 0:00:34]} 5. Qxd4 {[%emt 0:00:10]} d5 {[%emt 0:00:13]} 6. cxd5 {[%emt 0:04:52]} cxd5 {[%emt 0:00:22]} 7. Nf3 {[%emt 0:01:03]} Nc6 {[%emt 0:01:10]} 8. Qa4 {[%emt 0:00:12]} Be6 {[%emt 0:04:25]} 9. O-O {[%emt 0:00:42]} Bc5 {[%emt 0:01:33]} 10. Ne5 {[%emt 0:04:59]} Rc8 {[%emt 0:01:54]} 11. Nd2 {[%emt 0:08:11]} O-O {[%emt 0:01:23]} 12. Nxc6 {[%emt 0:00:25]} Rxc6 {[%emt 0:03:18]} 13. b4 {[%emt 0:07:43]} Ra6 {[%emt 0:11:17]} 14. Qb3 {[%emt 0:00:40]} Rb6 {[%emt 0:00:45]} 15. a3 {[%emt 0:01:12]} a5 {[%emt 0:02:12]} 16. Qc3 {[%emt 0:08:24]} Bd6 {[%emt 0:00:26]} 17. bxa5 {[%emt 0:01:41]} Rc6 {[%emt 0:00:46]} 18. Qd3 {[%emt 0:01:31]} Be5 {[%emt 0:04:41]} 19. Rb1 {[%emt 0:01:46]} Qxa5 {[%emt 0:05:37]} 20. Rxb7 {[%emt 0:04:32]} Rfc8 {[%emt 0:01:09]} 21. Nb3 {[%emt 0:03:07]} Qa8 {[%emt 0:02:35]} 22. Rb4 {[%emt 0:05:42]} Rc3 {[%emt 0:01:47]} 23. Qd1 {[%emt 0:05:26]} Bd6 {[%emt 0:02:02]} 24. Bb2 {[%emt 0:04:56]} Bxb4 {[%emt 0:03:23]} 25. axb4 {[%emt 0:00:02]} R3c4 {[%emt 0:01:20]} 26. Bxf6 {[%emt 0:00:35]} gxf6 {[%emt 0:00:26]} 27. Nc5 {[%emt 0:12:10]} Rxb4 {[%emt 0:01:11]} 28. Nd3 {[%emt 0:02:11]} Rbc4 {[%emt 0:11:04]} 29. Qd2 {[%emt 0:02:32]} Qa3 {[%emt 0:21:28]} 30. Qh6 {[%emt 0:02:41]} Qc3 {[%emt 0:05:12]} 31. Nf4 {[%emt 0:00:48]} Rxf4 {[%emt 0:00:13]} 32. Qxf4 {[%emt 0:00:09]} Qe5 {[%emt 0:00:16]} 33. Qd2 {[%emt 0:02:01]} Qc3 {[%emt 0:01:27]} 34. Qxc3 {[%emt 0:02:49]} Rxc3 {[%emt 0:00:05]} 35. Rd1 {[%emt 0:00:08]} Rc5 {[%emt 0:02:03]} 36. f4 {[%emt 0:00:25]} f5 {[%emt 0:00:24]} 37. Kf2 {[%emt 0:00:21]} Kg7 {[%emt 0:00:28]} 38. Bf3 {[%emt 0:00:29]} Kf6 {[%emt 0:04:37]} 39. h3 {[%emt 0:00:33]} h6 {[%emt 0:00:14]} 40. g4 {[%emt 0:03:03]} Ra5 {[%emt 0:00:41]} 41. Rd3 {[%emt 0:17:30]} Kg6 {[%emt 0:15:48]} 42. Kg3 {[%emt 0:03:07]} fxg4 {[%emt 0:02:33]} 43. hxg4 {[%emt 0:00:17]} f5 {[%emt 0:00:22]} 44. Re3 {[%emt 0:01:16]} Bf7 {[%emt 0:00:56]} 45. gxf5+ {[%emt 0:00:48]} Kf6 {[%emt 0:04:15]} 46. Re5 {[%emt 0:01:10]} Ra3 {[%emt 0:00:37]} 47. Kg4 {[%emt 0:02:33]} d4 {[%emt 0:00:00]} 48. Rb5 {[%emt 0:00:00]} Ra6 {[%emt 0:00:00]} 49. Rb7 {[%emt 0:00:00]} Rd6 {[%emt 0:00:00]} 50. Be4 {[%emt 0:00:00]} Bd5 {[%emt 0:00:00]} 51. Bxd5 {[%emt 0:00:00]} h5+ {[%emt 0:00:00]} 52. Kxh5 {[%emt 0:00:00]} Rxd5 {[%emt 0:00:00]} 53. Kg4 {[%emt 0:00:00]} d3 {[%emt 0:00:00]} 54. e4 {[%emt 0:00:00]} 1-0

[Event "15th Paderborner Schachtuerken-Cup 2018"]
[Site "Paderborn"]
[Date "2018.12.28"]
[Round "4"]
[White "Ackermann, Hans Werner"]
[Black "Haase, Thomas"]
[Result "1-0"]
[ECO "A13"]
[WhiteElo "2275"]
[BlackElo "2057"]
[Annotator "NA"]
[PlyCount "89"]
[EventDate "2018.12.27"]
[EventType "swiss"]
[EventCountry "GER"]
[SourceTitle "playchess.com"]
[Source "ChessBase"]
[SourceQuality "1"]
[TimeControl "40/5400+30:900+30"]

1. Nf3 {[%emt 0:00:09]} c5 {[%emt 0:04:14]} 2. b3 {[%emt 0:01:27]} d5 {[%emt 0:01:45]} 3. e3 {[%emt 0:00:39]} Nf6 {[%emt 0:03:37]} 4. Bb2 {[%emt 0:01:25]} e6 {[%emt 0:09:07]} 5. c4 {[%emt 0:05:34]} Be7 {[%emt 0:01:36]} 6. cxd5 {[%emt 0:04:38]} exd5 {[%emt 0:00:10]} 7. Bb5+ {[%emt 0:00:05]} Nbd7 {[%emt 0:03:44]} 8. O-O {[%emt 0:01:33]} O-O {[%emt 0:00:08]} 9. d4 {[%emt 0:03:21]} a6 {[%emt 0:00:53]} 10. Be2 {[%emt 0:01:49]} Re8 {[%emt 0:04:35]} 11. Qc2 {[%emt 0:07:21]} b6 {[%emt 0:03:14]} 12. Nc3 {[%emt 0:04:01]} Bb7 {[%emt 0:00:29]} 13. Rad1 {[%emt 0:05:09]} Rc8 {[%emt 0:01:07]} 14. dxc5 {[%emt 0:02:31]} Nxc5 {[%emt 0:12:02]} 15. Qb1 {[%emt 0:02:39]} Nfe4 {[%emt 0:01:54]} 16. Nxe4 {[%emt 0:01:10]} Nxe4 {[%emt 0:00:11]} 17. Bd3 {[%emt 0:00:23]} Qc7 {[%emt 0:03:59]} 18. Rc1 {[%emt 0:03:13]} Qd7 {[%emt 0:04:11]} 19. Rxc8 {[%emt 0:05:16]} Rxc8 {[%emt 0:00:15]} 20. Rc1 {[%emt 0:00:38]} Bf6 {[%emt 0:07:40]} 21. Bxf6 {[%emt 0:10:50]} Nxf6 {[%emt 0:00:08]} 22. Rd1 {[%emt 0:00:28]} Qc7 {[%emt 0:02:21]} 23. Bf5 {[%emt 0:02:29]} Re8 {[%emt 0:04:37]} 24. Rc1 {[%emt 0:02:22]} Qd6 {[%emt 0:00:11]} 25. Qc2 {[%emt 0:06:30]} Re7 {[%emt 0:04:40]} 26. h4 {[%emt 0:04:14]} g6 {[%emt 0:04:51]} 27. Bc8 {[%emt 0:03:52]} Bxc8 {[%emt 0:05:44]} 28. Qxc8+ {[%emt 0:00:12]} Kg7 {[%emt 0:00:05]} 29. Qxa6 {[%emt 0:00:54]} Rc7 {[%emt 0:00:10]} 30. Qf1 {[%emt 0:03:28]} Rc5 {[%emt 0:02:10]} 31. Rxc5 {[%emt 0:03:02]} Qxc5 {[%emt 0:02:22]} 32. Qd1 {[%emt 0:01:43]} h6 {[%emt 0:01:50]} 33. Nd4 {[%emt 0:03:41]} Ne4 {[%emt 0:01:35]} 34. a4 {[%emt 0:03:17]} Kh7 {[%emt 0:01:21]} 35. Ne2 {[%emt 0:02:43]} Qd6 {[%emt 0:02:05]} 36. Nf4 {[%emt 0:00:52]} Nc3 {[%emt 0:05:04]} 37. Qd3 {[%emt 0:01:04]} Qc6 {[%emt 0:02:35]} 38. h5 {[%emt 0:00:25]} Kg7 {[%emt 0:00:26]} 39. hxg6 {[%emt 0:00:10]} fxg6 {[%emt 0:00:08]} 40. Qd4+ {[%emt 0:01:59]} Kg8 {[%emt 0:01:24]} 41. Qe5 {[%emt 0:15:42]} g5 {[%emt 0:15:32]} 42. Nh5 {[%emt 0:00:52]} Ne2+ {[%emt 0:00:00]} 43. Kh2 {[%emt 0:00:00]} Qg6 {[%emt 0:00:00]} 44. Qxd5+ {[%emt 0:00:00]} Kf8 {[%emt 0:00:00]} 45. Qf3+ {[%emt 0:00:00]} 1-0